bitfinex/quotes_BTCUSD_20240918
["timestamp","ask_amount","ask_price","bid_price","bid_amount"]
[1726685936971,0.35975169,60801.0,60800.0,0.0058385]
[1726685937226,0.16528169,60801.0,60800.0,0.0058385]
[1726685937457,0.002,60801.0,60800.0,0.0058385]
[1726685937916,0.03328169,60805.0,60800.0,0.0058385]
[1726685937917,0.03,60805.0,60800.0,0.0058385]
[1726685938174,0.03,60803.0,60800.0,0.0058385]
[1726685938408,0.00328169,60802.0,60800.0,0.0058385]
[1726685939133,0.02581578,60802.0,60800.0,0.0058385]
[1726685940036,0.00328169,60801.0,60800.0,0.0058385]
[1726685940727,0.03528169,60801.0,60800.0,0.0058385]
[1726685940955,0.13528169,60801.0,60800.0,0.0058385]
[1726685941179,0.53379469,60801.0,60800.0,0.0056385]
[1726685941411,0.53379469,60801.0,60773.0,0.0090933]
[1726685941412,0.03,60781.0,60773.0,0.0090933]
[1726685941902,0.062,60786.0,60773.0,0.0090933]
[1726685941903,0.092,60774.0,60773.0,0.0090933]
[1726685942131,0.12769201,60774.0,60773.0,0.0089933]
[1726685942359,0.09569201,60774.0,60773.0,0.0089933]
[1726685942595,0.02582722,60780.0,60773.0,0.0089933]
[1726685943068,0.03,60778.0,60773.0,0.0089933]
[1726685943310,0.02582722,60780.0,60773.0,0.0089933]
[1726685943557,0.00328169,60777.0,60773.0,0.0089933]
[1726685943997,0.02582722,60780.0,60773.0,0.0089933]
[1726685944231,0.00328169,60776.0,60773.0,0.0089933]
[1726685944701,0.02582722,60780.0,60773.0,0.0089933]
[1726685944949,0.00328169,60775.0,60773.0,0.0089933]
[1726685945412,0.19528169,60775.0,60774.0,0.00479776]
[1726685945675,1.54098669,60775.0,60774.0,0.00479776]
[1726685945930,1.54098669,60775.0,60773.0,0.0089933]
[1726685945931,0.961486,60774.0,60773.0,0.0089933]
[1726685946160,0.192,60774.0,60773.0,0.0089933]
[1726685946404,0.63823168,60774.0,60773.0,0.0089933]
[1726685946643,0.1,60774.0,60773.0,0.0089933]
[1726685946876,0.00328169,60774.0,60773.0,0.0089933]
[1726685947366,0.12569201,60778.0,60773.0,0.0089933]
[1726685947602,0.09498296,60779.0,60773.0,0.0089933]
[1726685947603,0.12569201,60789.0,60773.0,0.0089933]
[1726685947861,0.02582571,60788.0,60773.0,0.0089933]
[1726685948091,0.00328169,60787.0,60773.0,0.0089933]
[1726685948319,0.02582571,60788.0,60773.0,0.0089933]
[1726685948552,0.02582571,60788.0,60773.0,0.0419933]
[1726685948780,0.02582571,60788.0,60777.0,0.033]
[1726685949005,0.02582571,60788.0,60785.0,0.164512]
[1726685949241,0.02582571,60788.0,60786.0,0.164511]
[1726685949483,0.02582571,60788.0,60781.0,0.329045]
[1726685949484,0.02582571,60788.0,60787.0,0.033]
[1726685949716,0.02582571,60788.0,60787.0,0.197508]
[1726685949940,0.02582571,60788.0,60787.0,0.03789994]
[1726685950691,0.02582571,60788.0,60787.0,0.00489994]
[1726685951157,0.04655344,60808.0,60773.0,0.0098183]
[1726685951158,0.98715059,60813.0,60794.0,0.164489]
[1726685951383,0.98715059,60813.0,60783.0,0.033]
[1726685951384,0.98715059,60813.0,60796.0,0.328967]
[1726685951629,0.01720514,60820.0,60801.0,0.32894]
[1726685951859,0.03328169,60829.0,60806.0,0.033]
[1726685952091,0.00328169,60825.0,60806.0,0.033]
[1726685952325,0.03,60829.0,60806.0,0.033]
[1726685952560,0.03,60829.0,60806.0,0.0463]
[1726685952813,0.00328169,60828.0,60808.0,0.033]
[1726685953265,0.03,60826.0,60809.0,0.0043602]
[1726685953490,0.00328169,60825.0,60808.0,0.033]
[1726685953711,0.00328169,60825.0,60800.0,0.1]
[1726685953712,0.00328169,60824.0,60801.0,0.033]
[1726685953933,0.00328169,60824.0,60803.0,0.033]
[1726685954615,0.03,60826.0,60805.0,0.033]
[1726685954840,0.00328169,60823.0,60805.0,0.033]
[1726685955063,0.03,60826.0,60806.0,0.00432447]
[1726685955294,0.03,60826.0,60806.0,0.03732447]
[1726685955518,0.00328169,60825.0,60806.0,0.033]
[1726685955738,0.00328169,60825.0,60807.0,0.00432447]
[1726685956214,0.13,60807.0,60768.0,0.44294999]
[1726685956438,0.13,60807.0,60767.0,0.164561]
[1726685956439,0.03,60811.0,60790.0,0.98715059]
[1726685956655,0.03,60811.0,60775.0,0.44294999]
[1726685956656,0.99043228,60810.0,60775.0,0.77202899]
[1726685956883,0.00328169,60810.0,60780.0,0.164526]
[1726685957103,0.00328169,60809.0,60775.0,0.44284999]
[1726685957355,0.00328169,60809.0,60773.0,0.06981831]
[1726685957356,0.1,60814.0,60788.0,0.033]
[1726685957602,0.03,60821.0,60790.0,0.033]
[1726685957839,0.1,60822.0,60795.0,0.133]
[1726685957840,0.02581421,60820.0,60795.0,0.133]
[1726685958145,0.0290959,60820.0,60797.0,0.123]
[1726685958372,0.00328169,60819.0,60799.0,0.164475]
[1726685958600,0.0258093,60825.0,60805.0,0.164458]
[1726685958812,0.0258093,60825.0,60802.0,0.164467]
[1726685958813,0.98715059,60823.0,60802.0,0.164467]
[1726685959044,0.02909099,60825.0,60803.0,0.023]
[1726685959045,0.0258093,60825.0,60803.0,0.023]
[1726685959272,0.00328169,60822.0,60803.0,0.023]
[1726685959492,0.00328169,60822.0,60804.0,0.04839905]
[1726685959721,0.00328169,60822.0,60805.0,0.164458]
[1726685959955,0.00328169,60822.0,60803.0,0.023]
[1726685960191,0.19569201,60831.0,60803.0,0.023]
[1726685960192,0.00328169,60830.0,60805.0,0.328919]
[1726685960417,0.00328169,60829.0,60811.0,0.023]
[1726685960649,0.02745639,60832.0,60814.0,0.164435]
[1726685960878,0.00328169,60831.0,60811.0,0.033]
[1726685961352,0.02745639,60832.0,60812.0,0.023]
[1726685961575,0.02745639,60832.0,60819.0,0.164421]
[1726685961820,0.02745639,60832.0,60815.0,0.328865]
[1726685961821,0.00165,60832.0,60816.0,0.033]
[1726685962034,0.00165,60832.0,60819.0,0.033]
[1726685962256,0.00165,60832.0,60822.0,0.328825]
[1726685962488,0.00165,60832.0,60823.0,0.023]
[1726685962710,0.00165,60832.0,60825.0,0.164404]
[1726685962934,0.00165,60832.0,60821.0,0.023]
[1726685963421,0.00165,60832.0,60826.0,0.033]
[1726685963665,0.00165,60832.0,60822.0,0.00328791]
[1726685963666,0.00165,60841.0,60832.0,0.123]
[1726685963889,0.00165,60841.0,60818.0,0.44294999]
[1726685963890,0.98715059,60839.0,60818.0,0.44294999]
[1726685964119,0.00165,60841.0,60826.0,0.164402]
[1726685964353,0.00165,60841.0,60819.0,0.12628785]
[1726685964354,0.00165,60841.0,60819.0,0.123]
[1726685964581,0.00165,60841.0,60812.0,0.44294999]
[1726685964582,0.00328169,60840.0,60814.0,0.033]
[1726685964813,0.00328169,60840.0,60796.0,0.328966]
[1726685964814,0.032,60830.0,60796.0,0.328966]
[1726685965064,0.002,60817.0,60787.0,0.00980973]
[1726685965296,0.03328169,60816.0,60789.0,0.98715059]
[1726685965523,0.002,60813.0,60784.0,0.164515]
[1726685965800,0.44623168,60812.0,60783.0,0.033]
[1726685966026,0.002,60809.0,60783.0,0.02074263]
[1726685966252,0.00328169,60808.0,60781.0,0.00990226]
[1726685966473,0.44294999,60806.0,60781.0,0.00990226]
[1726685966705,0.10328169,60805.0,60768.0,0.47294999]
[1726685966845,0.10328169,60805.0,60785.0,0.164512]
[1726685967076,0.98715059,60810.0,60789.0,0.164501]
[1726685967278,0.03328169,60809.0,60768.0,0.44294999]
[1726685967481,0.44294999,60805.0,60774.0,0.033]
[1726685967694,0.03,60801.0,60776.0,0.033]
[1726685967895,0.44294999,60799.0,60776.0,0.033]
[1726685968125,0.1,60804.0,60776.0,0.033]
[1726685968126,0.00328169,60798.0,60776.0,0.07118091]
[1726685968353,0.00328169,60798.0,60777.0,0.164533]
[1726685968553,0.00328169,60798.0,60776.0,0.23571891]
[1726685968753,0.00328169,60798.0,60775.0,0.033]
[1726685968966,0.1,60808.0,60775.0,0.033]
[1726685969172,0.10328169,60808.0,60782.0,0.16452]
[1726685969367,0.03,60807.0,60782.0,0.16452]
[1726685969569,0.00328169,60806.0,60782.0,0.16452]
[1726685969804,0.00328169,60806.0,60784.0,0.164516]
[1726685970010,0.00328169,60806.0,60783.0,0.023]
[1726685970186,0.00328169,60806.0,60776.0,0.033]
[1726685970187,0.03,60805.0,60776.0,0.033]
[1726685970424,0.00328169,60804.0,60779.0,0.1]
[1726685970595,0.02581635,60803.0,60780.0,0.033]
[1726685970804,0.19498296,60810.0,60787.0,0.164506]
[1726685971002,0.98715059,60808.0,60787.0,0.164508]
[1726685971201,0.19498296,60810.0,60787.0,0.164507]
[1726685971440,0.19498296,60810.0,60788.0,0.164505]
[1726685971638,0.19498296,60810.0,60787.0,0.023]
[1726685971779,0.19498296,60810.0,60788.0,0.164506]
[1726685971984,0.19498296,60810.0,60786.0,0.033]
[1726685971985,0.99043228,60809.0,60789.0,0.1]
[1726685972257,4e-05,60800.0,60771.0,0.0001]
[1726685972469,0.03,60797.0,60774.0,0.98715059]
[1726685972722,0.03,60791.0,60771.0,0.0001]
[1726685972933,0.00328169,60790.0,60771.0,0.0001]
[1726685974174,0.98715059,60809.0,60779.0,0.023]
[1726685974388,0.98715059,60809.0,60776.0,0.77202299]
[1726685974389,0.98715059,60809.0,60781.0,0.023]
[1726685974596,0.98715059,60809.0,60784.0,0.023]
[1726685974597,1.01715059,60809.0,60784.0,0.023]
[1726685974800,0.03,60803.0,60777.0,0.1]
[1726685975012,0.00332169,60800.0,60777.0,0.1]
[1726685975207,0.00332169,60800.0,60773.0,0.00981831]
[1726685975208,0.03,60796.0,60773.0,0.00981831]
[1726685975412,0.09,60792.0,60773.0,0.00981831]
[1726685975613,0.03328169,60791.0,60773.0,0.00981831]
[1726685975821,0.03,60790.0,60773.0,0.00981831]
[1726685976030,0.002,60786.0,60773.0,0.00981831]
[1726685976239,0.03,60775.0,60773.0,0.00981831]
[1726685976487,0.00328169,60774.0,60773.0,0.00981831]
[1726685977338,0.02910939,60774.0,60773.0,0.00981831]
[1726685977552,0.60205938,60774.0,60773.0,0.00981831]
[1726685977785,0.60205938,60774.0,60770.0,0.000825]
[1726685977786,0.09,60771.0,60770.0,0.000825]
[1726685977998,0.28826465,60771.0,60770.0,0.000825]
[1726685978217,0.29026465,60771.0,60770.0,0.000825]
[1726685978436,0.78392065,60771.0,60770.0,0.000725]
[1726685978647,1.185689,60767.0,60766.0,0.000725]
[1726685978861,0.03,60755.0,60739.0,0.000825]
[1726685979073,0.329146,60764.0,60739.0,0.000825]
[1726685979074,0.03,60745.0,60739.0,0.000825]
[1726685979283,0.01791683,60740.0,60739.0,0.0036751]
[1726685980763,0.01791683,60740.0,60739.0,0.000825]
[1726685981207,0.01791683,60740.0,60739.0,0.033825]
[1726685981433,0.01791683,60740.0,60739.0,0.20616269]
[1726685981671,0.04720514,60767.0,60748.0,0.033]
[1726685981672,0.02583632,60753.0,60748.0,0.033]
[1726685981896,0.01676512,60752.0,60751.0,0.197606]
[1726685982121,0.01676512,60752.0,60751.0,0.85603]
[1726685982341,0.02583196,60763.0,60755.0,0.133]
[1726685982560,0.01561371,60762.0,60761.0,0.526737]
[1726685982773,0.01561371,60762.0,60761.0,0.855895]
[1726685982992,0.01561371,60762.0,60761.0,0.20230492]
[1726685983635,0.01561371,60762.0,60761.0,0.53146292]
[1726685984062,0.02582696,60773.0,60761.0,1.02519992]
[1726685984306,0.25011198,60788.0,60774.0,0.164542]
[1726685984741,0.00328169,60788.0,60774.0,0.164543]
[1726685984975,0.00328169,60794.0,60775.0,0.00472592]
[1726685985199,0.00328169,60794.0,60770.0,0.329108]
[1726685985408,0.00328169,60794.0,60771.0,0.00472592]
[1726685985639,0.01720514,60799.0,60777.0,0.033]
[1726685985864,0.00328169,60797.0,60777.0,0.033]
[1726685986082,0.00328169,60796.0,60781.0,0.033]
[1726685986301,4e-05,60800.0,60781.0,0.033]
[1726685986302,0.00332169,60800.0,60784.0,0.164516]
[1726685986527,0.00332169,60800.0,60783.0,0.033]
[1726685986733,0.00332169,60800.0,60785.0,0.16923892]
[1726685986948,0.00332169,60800.0,60783.0,0.362036]
[1726685986949,4e-05,60800.0,60784.0,0.329032]
[1726685987183,4e-05,60800.0,60792.0,0.164493]
[1726685987409,4e-05,60800.0,60795.0,0.033]
[1726685987631,4e-05,60800.0,60797.0,0.033]
[1726685987834,4e-05,60800.0,60799.0,0.164476]
[1726685988049,4e-05,60800.0,60799.0,0.526428]
[1726685988284,4e-05,60800.0,60799.0,0.85984749]
[1726685988515,4e-05,60800.0,60799.0,1.28879949]
[1726685989618,0.00165,60806.0,60805.0,0.8223]
[1726685989836,0.00165,60806.0,60805.0,1.39824999]
[1726685990090,0.00165,60806.0,60805.0,1.72716999]
[1726685990314,0.00165,60806.0,60805.0,1.92672306]
[1726685990532,0.00165,60806.0,60805.0,2.25117557]
[1726685990746,0.00165,60824.0,60822.0,0.033]
[1726685990972,0.00165,60824.0,60823.0,0.197411]
[1726685991205,0.00165,60824.0,60823.0,0.526233]
[1726685991430,0.00165,60824.0,60823.0,0.984857]
[1726685991656,0.00165,60824.0,60823.0,1.084857]
[1726685992128,0.00165,60824.0,60823.0,0.297411]
[1726685992352,0.00165,60824.0,60821.0,0.033]
[1726685992576,0.00165,60824.0,60821.0,0.197416]
[1726685992804,0.00165,60824.0,60821.0,0.197415]
[1726685993033,0.00165,60824.0,60821.0,0.033]
[1726685993974,0.00165,60824.0,60811.0,0.297442]
[1726685994215,0.00328169,60823.0,60813.0,0.1]
[1726685994438,0.00328169,60823.0,60805.0,0.033]
[1726685994652,0.00328169,60823.0,60805.0,0.197459]
[1726685994883,0.03,60822.0,60801.0,0.033]
[1726685995101,0.03,60819.0,60789.0,0.164501]
[1726685995322,0.03,60817.0,60790.0,0.98661492]
[1726685995541,0.00328169,60816.0,60784.0,0.329032]
[1726685995797,0.00328169,60816.0,60760.0,0.03]
[1726685995798,0.03,60813.0,60778.0,0.329063]
[1726685995988,0.03,60813.0,60753.0,0.329199]
[1726685995989,0.03328169,60812.0,60787.0,0.033]
[1726685996209,0.03328169,60812.0,60790.0,0.033]
[1726685996730,0.1,60814.0,60791.0,0.033]
[1726685996949,0.1,60814.0,60790.0,0.77194699]
[1726685996950,0.00328169,60811.0,60790.0,0.033]
[1726685997170,0.00328169,60811.0,60782.0,0.164521]
[1726685997390,0.03,60807.0,60782.0,0.082265]
[1726685997604,0.03,60807.0,60773.0,0.329091]
[1726685997605,0.00328169,60806.0,60773.0,0.329091]
[1726685997819,0.02581871,60804.0,60777.0,0.329071]
[1726685998032,0.02581871,60804.0,60773.0,0.33893881]
[1726685998033,0.00328169,60803.0,60779.0,0.033]
[1726685998264,0.03,60801.0,60779.0,0.033]
[1726685998479,0.00328169,60800.0,60779.0,0.033]
[1726685998696,0.00328169,60800.0,60781.0,0.033]
[1726685998910,0.00328169,60800.0,60769.0,0.000825]
[1726685998911,0.00328169,60800.0,60775.0,0.16454]
[1726685999137,0.00328169,60800.0,60776.0,0.033]
[1726685999138,0.02581798,60795.0,60776.0,0.033]
[1726685999360,0.02581798,60795.0,60769.0,0.000825]
[1726685999591,0.03,60793.0,60769.0,0.000825]
[1726685999817,0.03,60787.0,60769.0,0.000825]
[1726686000043,0.1,60793.0,60769.0,0.000825]
[1726686000044,0.03,60780.0,60769.0,0.000825]
[1726686000315,0.09569201,60779.0,60769.0,0.000825]
[1726686000558,0.00206169,60778.0,60769.0,0.000825]
[1726686001044,0.12569201,60779.0,60759.0,0.0028501]
[1726686001045,0.04881956,60770.0,60759.0,0.0028501]
[1726686001289,0.01486885,60762.0,60760.0,0.98661492]
[1726686001527,0.01486885,60762.0,60760.0,0.09896632]
[1726686001764,0.01486885,60762.0,60761.0,0.822895]
[1726686002003,0.01486885,60762.0,60761.0,0.526737]
[1726686002239,0.01486885,60762.0,60761.0,0.197579]
[1726686002471,0.01486885,60762.0,60761.0,0.493737]
[1726686002972,0.01486885,60762.0,60759.0,0.0028501]
[1726686003213,0.09569201,60764.0,60759.0,0.0028501]
[1726686003214,0.01541055,60760.0,60759.0,0.0028501]
[1726686003960,0.01541055,60760.0,60746.0,0.000826]
[1726686003961,0.03,60757.0,60746.0,0.000826]
[1726686004270,0.01662963,60747.0,60746.0,0.000826]
[1726686004493,0.01662963,60747.0,60746.0,0.000726]
[1726686005638,0.01662963,60747.0,60746.0,0.0205616]
[1726686005856,0.01662963,60747.0,60746.0,0.165345]
[1726686006083,0.09569201,60764.0,60746.0,0.165345]
[1726686006084,0.09569201,60764.0,60746.0,0.100726]
[1726686006312,0.01615551,60763.0,60762.0,0.329153]
[1726686006539,0.01513968,60763.0,60762.0,0.493729]
[1726686006775,0.01513968,60763.0,60762.0,0.5596443]
[1726686007010,0.01513968,60763.0,60762.0,1.2199503]
[1726686007235,0.29562971,60790.0,60777.0,0.164533]
[1726686007236,0.24686685,60790.0,60777.0,0.164533]
[1726686007483,0.24686685,60790.0,60778.0,0.197533]
[1726686007484,0.00206169,60789.0,60778.0,0.197533]
[1726686007714,0.19067497,60797.0,60782.0,0.033]
[1726686007715,0.18237852,60797.0,60782.0,0.033]
[1726686007943,0.18237852,60797.0,60773.0,0.1]
[1726686007944,0.18237852,60797.0,60787.0,0.033]
[1726686008166,0.18237852,60797.0,60783.0,0.033]
[1726686008412,0.18237852,60797.0,60766.0,0.329129]
[1726686008413,0.00206169,60796.0,60777.0,0.164533]
[1726686008614,0.00206169,60796.0,60778.0,0.0164533]
[1726686008844,0.00206169,60796.0,60764.0,0.13]
[1726686008845,0.03,60793.0,60764.0,0.329141]
[1726686009061,0.03,60793.0,60751.0,0.03]
[1726686009062,0.02788232,60792.0,60768.0,0.44294999]
[1726686009337,0.03,60791.0,60764.0,0.033]
[1726686009542,0.03,60791.0,60750.0,0.329213]
[1726686009543,0.03,60776.0,60746.0,0.000726]
[1726686009773,0.23320307,60775.0,60758.0,0.98697197]
[1726686010007,0.23320307,60775.0,60746.0,0.000726]
[1726686010008,0.03,60772.0,60746.0,0.165345]
[1726686010233,0.03,60772.0,60747.0,0.98697197]
[1726686010234,0.01561371,60748.0,60747.0,0.98697197]
[1726686010454,0.01561371,60748.0,60746.0,0.000726]
[1726686010677,0.01723931,60747.0,60746.0,0.000726]
[1726686011361,0.04307543,60747.0,60746.0,0.000726]
[1726686012761,0.04513712,60747.0,60746.0,0.000726]
[1726686012990,0.04307543,60747.0,60746.0,0.000726]
[1726686013221,0.04513712,60747.0,60746.0,0.000726]
[1726686013901,0.01723931,60747.0,60746.0,0.000726]
[1726686014156,0.01723931,60747.0,60746.0,0.165345]
[1726686014515,0.04886473,60777.0,60749.0,0.002]
[1726686014519,0.24692781,60763.0,60760.0,0.164581]
[1726686014740,0.29744454,60779.0,60760.0,0.164581]
[1726686014741,0.01507198,60774.0,60773.0,0.493639]
[1726686014972,0.01507198,60774.0,60767.0,0.033]
[1726686014973,0.001652,60779.0,60767.0,0.033]
[1726686015211,0.001652,60779.0,60749.0,0.092]
[1726686015212,5.14,60778.0,60762.0,0.033]
[1726686015399,0.04881057,60776.0,60746.0,0.1205605]
[1726686015617,5.12527754,60777.0,60746.0,0.1205605]
[1726686015618,0.01534284,60751.0,60746.0,0.000726]
[1726686015862,0.01534284,60751.0,60749.0,0.164611]
[1726686016062,0.01534284,60751.0,60750.0,0.164609]
[1726686016279,0.18237852,60763.0,60746.0,0.000726]
[1726686016280,0.18237852,60763.0,60751.0,0.033]
[1726686016481,0.01588459,60763.0,60762.0,0.526729]
[1726686016691,0.001652,60779.0,60778.0,0.164533]
[1726686016901,0.001652,60779.0,60778.0,0.493599]
[1726686017097,0.001652,60779.0,60778.0,1.184731]
[1726686017316,0.001652,60779.0,60763.0,0.1]
[1726686017317,0.98747552,60799.0,60788.0,0.033]
[1726686017551,0.98747552,60799.0,60793.0,0.033]
[1726686017739,0.09569201,60807.0,60795.0,0.033]
[1726686017955,0.09569201,60807.0,60795.0,0.0691988]
[1726686018162,0.00206169,60806.0,60797.0,0.033]
[1726686018588,0.00206169,60806.0,60787.0,0.033]
[1726686018589,0.209,60805.0,60787.0,0.033]
[1726686018828,0.09569201,60807.0,60787.0,0.033]
[1726686018829,0.02787443,60804.0,60787.0,0.033]
[1726686019002,0.02581274,60804.0,60790.0,0.033]
[1726686019211,0.02581274,60804.0,60793.0,0.033]
[1726686019212,0.00206169,60803.0,60793.0,0.033]
[1726686019581,0.00206169,60803.0,60764.0,0.1]
[1726686019582,0.1496,60802.0,60764.0,0.1]
[1726686019692,0.03,60794.0,60777.0,0.033]
[1726686019898,0.03,60788.0,60765.0,0.01]
[1726686020139,0.03,60788.0,60749.0,0.329219]
[1726686020140,0.03,60786.0,60755.0,0.164594]
[1726686020360,0.06,60788.0,60756.0,0.98747552]
[1726686020361,0.13,60784.0,60756.0,0.98747552]
[1726686020566,0.1,60781.0,60760.0,0.033]
[1726686020768,0.1,60781.0,60748.0,0.03]
[1726686020769,0.18444021,60780.0,60765.0,0.033]
[1726686020975,0.18444021,60780.0,60754.0,0.329192]
[1726686020976,0.18237852,60780.0,60771.0,0.033]
[1726686021204,0.18237852,60780.0,60761.0,0.47294999]
[1726686021205,0.02582337,60790.0,60779.0,0.033]
[1726686021411,0.98747552,60795.0,60779.0,0.033]
[1726686021412,0.00206169,60794.0,60779.0,0.033]
[1726686021659,0.02581893,60788.0,60779.0,0.033]
[1726686021864,0.18237852,60799.0,60780.0,0.00329048]
[1726686022106,0.18237852,60799.0,60773.0,0.1]
[1726686022107,0.00206169,60798.0,60782.0,0.033]
[1726686022349,0.18237852,60799.0,60782.0,0.033]
[1726686022350,0.00206169,60797.0,60782.0,0.033]
[1726686023059,0.00206169,60797.0,60783.0,0.033]
[1726686023718,0.00206169,60796.0,60783.0,0.033]
[1726686024139,0.00206169,60796.0,60784.0,0.033]
[1726686024355,0.44501168,60796.0,60784.0,0.033]
[1726686024614,0.44501168,60796.0,60772.0,0.1]
[1726686024615,0.00206169,60796.0,60777.0,0.164534]
[1726686024798,0.1,60794.0,60765.0,0.164567]
[1726686025035,0.1,60794.0,60759.0,0.164584]
[1726686025036,0.03,60788.0,60759.0,0.164584]
[1726686025251,0.06,60791.0,60744.0,0.002]
[1726686025252,0.00206169,60787.0,60764.0,0.329138]
[1726686025463,0.18237852,60786.0,60761.0,0.00329106]
[1726686025698,0.00206169,60785.0,60764.0,0.033]
[1726686025930,0.03,60781.0,60746.0,0.01066066]
[1726686026158,0.01500427,60756.0,60747.0,0.98747552]
[1726686026393,0.01662963,60748.0,60746.0,0.000726]
[1726686026635,0.62532851,60762.0,60746.0,0.000726]
[1726686026636,0.01723931,60747.0,60746.0,0.000726]
[1726686028651,0.01723931,60747.0,60746.0,0.0381799]
[1726686028883,0.01723931,60747.0,60746.0,0.033726]
[1726686029117,0.01723931,60747.0,60746.0,0.00538273]
[1726686029334,0.01723931,60747.0,60746.0,0.000726]
[1726686029552,0.019301,60747.0,60746.0,0.000726]
[1726686029790,0.01723931,60747.0,60746.0,0.000726]
[1726686030549,0.01723931,60747.0,60746.0,0.000626]
[1726686031822,0.04307769,60747.0,60746.0,0.000626]
[1726686032337,0.01723931,60747.0,60746.0,0.000626]
[1726686033302,0.01723931,60747.0,60738.0,0.0031548]
[1726686033303,0.01723931,60747.0,60738.0,0.0026058]
[1726686033538,0.18237852,60749.0,60738.0,0.0026058]
[1726686033539,0.01784909,60739.0,60738.0,0.0026058]
[1726686034773,0.01784909,60739.0,60738.0,0.4965298]
[1726686035096,0.01784909,60739.0,60738.0,0.91176578]
[1726686035344,0.01784909,60739.0,60738.0,0.58248278]
[1726686035579,0.01784909,60739.0,60738.0,0.8588128]
[1726686036072,0.01784909,60739.0,60738.0,0.0356058]
[1726686036319,0.01784909,60739.0,60738.0,0.2002468]
[1726686036550,0.01784909,60739.0,60738.0,0.0356058]
[1726686036780,0.04368689,60739.0,60738.0,0.0356058]
[1726686037024,0.01784909,60739.0,60738.0,0.0026058]
[1726686037284,0.01991078,60739.0,60738.0,0.0026058]
[1726686037803,0.01991078,60739.0,60738.0,0.0034278]
[1726686037804,0.01784909,60739.0,60738.0,0.0034278]
[1726686038289,0.01784909,60739.0,60730.0,0.0061928]
[1726686038290,0.01991078,60739.0,60730.0,0.0046206]
[1726686038562,0.01893334,60731.0,60730.0,0.0046206]
[1726686038845,0.20337355,60731.0,60730.0,0.0046206]
[1726686039332,0.20337355,60731.0,60730.0,0.0051775]
[1726686039822,0.30537355,60731.0,60730.0,0.0051775]
[1726686040075,0.03,60729.0,60719.0,0.000825]
[1726686040344,0.03,60722.0,60719.0,0.000825]
[1726686040592,0.03,60722.0,60719.0,0.000725]
[1726686040593,0.02083148,60720.0,60719.0,0.000725]
[1726686041318,0.0487418,60720.0,60719.0,0.000725]
[1726686042298,0.0487418,60720.0,60719.0,0.000625]
[1726686043493,0.04668011,60720.0,60719.0,0.000625]
[1726686044278,0.02083148,60720.0,60719.0,0.527704]
[1726686044538,0.04896252,60743.0,60719.0,0.527704]
[1726686044539,0.04896252,60748.0,60730.0,0.033]
[1726686044801,0.09792504,60751.0,60750.0,0.164609]
[1726686044802,0.24692781,60751.0,60750.0,0.164609]
[1726686045062,0.01721343,60765.0,60755.0,0.033]
[1726686045318,0.98764619,60770.0,60764.0,0.033]
[1726686045319,0.00206169,60769.0,60764.0,0.033]
[1726686045562,0.00206169,60769.0,60752.0,0.329206]
[1726686045563,0.18237852,60773.0,60772.0,0.164549]
[1726686045803,0.08668651,60774.0,60753.0,0.03536504]
[1726686046059,0.0887482,60774.0,60765.0,0.00440062]
[1726686046336,0.08668651,60774.0,60753.0,0.03536504]
[1726686046587,0.08668651,60774.0,60769.0,0.164557]
[1726686046841,0.08668651,60774.0,60765.0,0.329133]
[1726686046842,0.08668651,60774.0,60771.0,0.033]
[1726686047094,0.0056231,60779.0,60778.0,0.164533]
[1726686047331,0.0056231,60779.0,60778.0,0.493599]
[1726686047555,0.0056231,60779.0,60778.0,0.526599]
[1726686047795,0.0056231,60779.0,60778.0,0.033]
[1726686048734,0.03144345,60779.0,60771.0,0.033]
[1726686049400,0.18444021,60778.0,60771.0,0.033]
[1726686049402,0.18444021,60778.0,60748.0,0.329227]
[1726686049602,0.1,60777.0,60749.0,0.98764619]
[1726686049815,0.1,60777.0,60745.0,0.32924]
[1726686049816,0.66111569,60776.0,60751.0,0.033]
[1726686050073,0.0258295,60771.0,60751.0,0.033]
[1726686050225,0.00206169,60770.0,60751.0,0.033]
[1726686050662,0.00206169,60770.0,60749.0,0.033]
[1726686051323,0.0258295,60771.0,60752.0,0.033]
[1726686051543,0.0258295,60771.0,60760.0,0.033]
[1726686051544,0.00206169,60770.0,60760.0,0.033]
[1726686051774,0.0258295,60771.0,60768.0,0.164559]
[1726686052001,0.0258295,60771.0,60770.0,0.164554]
[1726686052226,0.0258295,60771.0,60770.0,0.526663]
[1726686052452,0.0258295,60771.0,60770.0,0.5793293]
[1726686052678,0.001644,60774.0,60773.0,0.526639]
[1726686052909,0.001644,60774.0,60773.0,0.197546]
[1726686053160,0.001644,60774.0,60773.0,0.033]
[1726686053629,0.001644,60774.0,60773.0,0.593639]
[1726686053863,0.001644,60774.0,60773.0,1.01872498]
[1726686054085,0.001644,60774.0,60773.0,0.68963198]
[1726686054302,0.001644,60774.0,60773.0,0.033]
[1726686054527,0.001644,60774.0,60770.0,0.033]
[1726686054745,0.001644,60774.0,60758.0,0.1]
[1726686054987,0.001644,60774.0,60745.0,0.389242]
[1726686054988,0.00206169,60773.0,60749.0,0.44294999]
[1726686055250,0.001644,60774.0,60756.0,0.44294999]
[1726686055467,0.00206169,60772.0,60750.0,0.329215]
[1726686055698,0.18444021,60772.0,60753.0,0.033]
[1726686055921,0.00206169,60771.0,60757.0,0.033]
[1726686056141,0.00206169,60771.0,60757.0,0.197589]
[1726686056361,0.18237852,60772.0,60759.0,0.164583]
[1726686056611,0.98746739,60769.0,60757.0,0.033]
[1726686056821,0.00206169,60768.0,60757.0,0.033]
[1726686057057,0.00206169,60768.0,60746.0,0.000822]
[1726686057058,0.05102421,60768.0,60746.0,0.000822]
[1726686057282,0.15782816,60769.0,60746.0,0.000822]
[1726686057283,0.04896252,60764.0,60746.0,0.000822]
[1726686057760,0.04896252,60761.0,60746.0,0.000822]
[1726686057994,0.14896252,60759.0,60745.0,0.03004957]